[Event "ETCC Open 2023"]
[Site "Budva"]
[Date "2023.11.14"]
[Round "4.25"]
[White "Yilmaz, Mustafa"]
[Black "Vitiugov, Nikita"]
[Result "1/2-1/2"]
[ECO "D27"]
[WhiteElo "2650"]
[BlackElo "2712"]
[Annotator "RC"]
[PlyCount "82"]
[EventDate "2023.11.10"]
[EventType "team-tourn"]
[EventCountry "MNE"]
[SourceTitle "playchess.com"]
[Source "ChessBase"]
[SourceQuality "1"]
[WhiteTeam "Turkey"]
[BlackTeam "England"]
[WhiteTeamCountry "TUR"]
[BlackTeamCountry "ENG"]
[TimeControl "40/5400+30:1800+30"]

1. d4 {[%emt 0:01:08]} d5 {[%emt 0:00:12]} 2. c4 {[%emt 0:00:26]} dxc4 {[%emt 0:00:07]} 3. Nf3 {[%emt 0:00:41]} Nf6 {[%emt 0:00:12]} 4. e3 {[%emt 0:00:05]} e6 {[%emt 0:00:06]} 5. Bxc4 {[%emt 0:00:04]} c5 {[%emt 0:00:05]} 6. O-O {[%emt 0:00:36]} Nc6 {[%emt 0:00:42]} 7. a3 {[%emt 0:03:55]} a6 {[%emt 0:01:16]} 8. dxc5 {[%emt 0:01:08]} Qxd1 {[%emt 0:01:55]} 9. Rxd1 {[%emt 0:00:04]} Bxc5 {[%emt 0:00:04]} 10. b4 {[%emt 0:00:05]} Be7 {[%emt 0:00:09]} 11. Bb2 {[%emt 0:00:06]} O-O {[%emt 0:00:48]} 12. Nbd2 {[%emt 0:01:09]} b5 {[%emt 0:01:36]} 13. Be2 {[%emt 0:02:34]} Bb7 {[%emt 0:02:20]} 14. Nb3 {[%emt 0:03:19]} Rfd8 {[%emt 0:01:07]} 15. Rac1 {[%emt 0:04:51]} Rxd1+ {[%emt 0:10:35]} 16. Bxd1 {[%emt 0:05:27]} Nd7 {[%emt 0:05:38]} 17. Nfd2 {[%emt 0:14:36]} Rc8 {[%emt 0:01:59]} 18. f4 {[%emt 0:07:04]} Kf8 {[%emt 0:18:30]} 19. Bf3 {[%emt 0:09:48]} g6 {[%emt 0:03:39]} 20. Kf2 {[%emt 0:04:22]} Nd8 {[%emt 0:06:20]} 21. Rxc8 {[%emt 0:01:47]} Bxc8 {[%emt 0:00:03]} 22. Na5 {[%emt 0:00:56]} Bd6 {[%emt 0:11:33]} 23. Ne4 {[%emt 0:09:41]} Bc7 {[%emt 0:02:28]} 24. Nf6 {[%emt 0:02:42]} h5 {[%emt 0:00:09]} 25. Nxd7+ {[%emt 0:06:55]} Bxd7 {[%emt 0:00:05]} 26. Bf6 {[%emt 0:00:10]} Ke8 {[%emt 0:02:11]} 27. Nb3 {[%emt 0:06:33]} Bb6 {[%emt 0:02:05]} 28. Nd4 {[%emt 0:00:54]} a5 {[%emt 0:10:00]} 29. h3 {[%emt 0:03:44]} axb4 {[%emt 0:02:28]} 30. axb4 {[%emt 0:00:02]} Bxd4 {[%emt 0:02:05]} 31. Bxd4 {[%emt 0:00:24]} Bc6 {[%emt 0:00:04]} 32. Be2 {[%emt 0:02:25]} Nb7 {[%emt 0:00:04]} 33. Be5 {[%emt 0:03:04]} Ke7 {[%emt 0:00:26]} 34. e4 {[%emt 0:00:53]} f6 {[%emt 0:03:30]} 35. Bb8 {[%emt 0:03:08]} Nd6 {[%emt 0:01:06]} 36. Bxd6+ {[%emt 0:01:00]} Kxd6 {[%emt 0:00:05]} 37. h4 {[%emt 0:00:29]} Be8 {[%emt 0:07:22]} 38. Ke3 {[%emt 0:00:35]} e5 {[%emt 0:00:07]} 39. g3 {[%emt 0:02:23]} Ke7 {[%emt 0:00:05]} 40. Bd1 {[%emt 0:00:33]} Kf8 {[%emt 0:00:32]} 41. Bb3 {[%emt 0:30:34]} Bd7 {[%emt 0:30:53]} 1/2-1/2

[Event "ETCC Open 2023"]
[Site "Budva"]
[Date "2023.11.14"]
[Round "4.26"]
[White "Howell, David W L"]
[Black "Sanal, Vahap"]
[Result "1/2-1/2"]
[ECO "A14"]
[WhiteElo "2676"]
[BlackElo "2608"]
[Annotator "TA"]
[PlyCount "68"]
[EventDate "2023.11.10"]
[EventType "team-tourn"]
[EventCountry "MNE"]
[SourceTitle "playchess.com"]
[Source "ChessBase"]
[SourceQuality "1"]
[WhiteTeam "England"]
[BlackTeam "Turkey"]
[WhiteTeamCountry "ENG"]
[BlackTeamCountry "TUR"]
[TimeControl "40/5400+30:1800+30"]

{[%evp 16,68,15,14,17,0,0,0,0,0,32,33,26,23,23,22,11,20,9,8,22,15,73,69,64,66,61,46,73,31,31,37,65,24,22,15,25,21,66,38,66,0,0,0,0,0,0,0,0,0,0,0,0,0,25]} 1. Nf3 {[%emt 0:00:14]} d5 {[%emt 0:00:50]} 2. g3 {[%emt 0:00:38]} Nf6 {[%emt 0:00:17]} 3. Bg2 {[%emt 0:00:23]} e6 {[%emt 0:00:11]} 4. c4 {[%emt 0:05:45]} Be7 {[%emt 0:00:18]} 5. d4 {[%emt 0:00:21]} O-O {[%emt 0:00:09]} 6. Nc3 {[%emt 0:00:29]} c6 {[%emt 0:00:32]} 7. O-O {[%emt 0:01:47]} a5 $1 {[%emt 0:00:15][%mdl 4] is recently more successful than 7...Nbd7.} 8. b3 {[%emt 0:19:28]} b6 {[%emt 0:01:32][%cal Bb7b6,Bb6b5][%mdl 32]} 9. Bb2 {[%emt 0:00:08]} Ba6 {[%emt 0:00:47] A14: English Opening: 1...e6 with b3 by White.} 10. Nd2 {[%emt 0:00:48]} b5 {[%emt 0:01:31]} 11. c5 {[%emt 0:00:38]} b4 {[%emt 0:03:48]} 12. Na4 {[%emt 0:00:07] [#]} Nfd7 $146 {[%emt 0:03:31]} ({Predecessor:} 12... Nbd7 13. Re1 Bb5 14. a3 Qc7 15. Qc2 e5 16. e4 bxa3 17. Bxa3 exd4 18. exd5 d3 {½-½ Narayanan,S (2673)-Bluebaum,M (2651) Speed Chess Q1 blitz 2022 (14)}) 13. Re1 {[%emt 0:09:05]} f5 {[%emt 0:00:33]} 14. a3 {[%emt 0:06:40]} Bb5 {[%emt 1:23:16]} 15. axb4 {[%emt 0:02:37]} axb4 {[%emt 0:00:00]} 16. Qc2 {[%emt 0:11:31]} Na6 {[%emt 0:00:00]} 17. Nf3 {[%emt 0:02:19]} Bf6 {[%emt 0:00:00]} 18. Ra2 {[%emt 0:06:52]} Qc7 {[%emt 0:00:00]} (18... Qe7 $11 {keeps the balance.}) 19. Bc1 $16 {[%emt 0:03:52]} Qb7 {[%emt 0:00:00]} 20. Bf4 {[%emt 0:02:58]} Nc7 {[%emt 0:00:00]} 21. e3 {[%emt 0:10:42]} Ra7 {[%emt 0:00:00]} 22. h4 {[%emt 0:06:42]} (22. Qd2 $5) 22... Rfa8 {[%emt 0:00:00]} 23. Rb1 {[%emt 0:00:58]} g6 {[%emt 0:00:00]} 24. Bh3 {[%emt 0:00:42]} Bg7 {[%emt 0:00:00] [#]} 25. h5 $1 {[%emt 0:02:24]} gxh5 {[%emt 0:00:00]} 26. Rab2 {[%emt 0:01:44]} Bxa4 {[%emt 0:00:00]} (26... Ne8 {is interesting.} 27. Ng5 Nf8 28. Nb6 Rd8) 27. bxa4 {[%emt 0:00:02]} Rxa4 {[%emt 0:00:00]} 28. Bxc7 {[%emt 0:01:33] White is more active.} (28. Bf1 $14) 28... Qxc7 $11 {[%emt 0:00:00] The position is equal.} 29. Rxb4 {[%emt 0:00:04]} Rxb4 {[%emt 0:00:00]} 30. Rxb4 {[%emt 0:00:03]} Bf6 {[%emt 0:00:00]} 31. Qb3 {[%emt 0:01:36][%cal Oe3e4]} Ra7 {[%emt 0:00:43]} 32. Ra4 {[%emt 0:01:57]} Rb7 {[%emt 0:01:31]} 33. Rb4 {[%emt 0:00:39]} Rxb4 {[%emt 0:02:21]} 34. Qxb4 {[%emt 0:00:05]} Kf7 {[%emt 0:01:49] Weighted Error Value: White=0.09 (flawless) /Black=0.12 (very precise)} 1/2-1/2

[Event "ETCC Open 2023"]
[Site "Budva"]
[Date "2023.11.14"]
[Round "4.27"]
[White "Can, Emre"]
[Black "Adams, Michael"]
[Result "1/2-1/2"]
[ECO "E06"]
[WhiteElo "2566"]
[BlackElo "2670"]
[Annotator "TA"]
[PlyCount "59"]
[EventDate "2023.11.10"]
[EventType "team-tourn"]
[EventCountry "MNE"]
[SourceTitle "playchess.com"]
[Source "ChessBase"]
[SourceQuality "1"]
[WhiteTeam "Turkey"]
[BlackTeam "England"]
[WhiteTeamCountry "TUR"]
[BlackTeamCountry "ENG"]
[TimeControl "40/5400+30:1800+30"]

{[%evp 14,59,33,20,20,10,8,3,14,25,25,16,16,0,0,0,0,0,9,5,29,32,49,43,40,46,37,22,20,16,32,14,0,0,9,17,9,9,10,5,9,9,6,0,0,0,11,0]} 1. d4 {[%emt 0:02:36]} Nf6 {[%emt 0:00:06]} 2. c4 {[%emt 0:00:56]} e6 {[%emt 0:00:06]} 3. Nf3 {[%emt 0:00:21]} d5 {[%emt 0:00:09]} 4. g3 {[%emt 0:00:13]} Be7 {[%emt 0:00:07]} 5. Bg2 {[%emt 0:01:01]} O-O {[%emt 0:00:10]} 6. O-O {[%emt 0:01:13][%cal Bh1f1,Bf1c1,Bc1c2][%mdl 32]} dxc4 {[%emt 0:00:09]} 7. Qc2 {[%emt 0:00:28]} c6 {[%emt 0:00:18]} 8. Qxc4 {[%emt 0:00:33]} b5 {[%emt 0:00:06] E06: Closed Catalan: Early deviations.} 9. Qd3 $1 {[%emt 0:01:00][%mdl 4] outshines the older 9.Qc2.} Nbd7 {[%emt 0:01:06]} 10. Be3 {[%emt 0:00:32][%cal Bc1e3,Be3f4,Bf4e5][%mdl 32]} a5 {[%emt 0:03:48]} 11. Rc1 {[%emt 0:01:45] [#]} Nd5 $146 {[%emt 0:00:55]} ({Predecessor:} 11... b4 12. Rxc6 Bb7 13. Rc1 Ba6 14. Qd1 Nd5 15. Bd2 Qb6 16. Be1 a4 17. e4 N5f6 {0-1 Matlakov,M (2671)-Caruana,F (2776) Chess.com Rapid Losers 2022 (1.2)}) 12. Nc3 {[%emt 0:10:15]} ({Reject} 12. Rxc6 Nb4 13. Qxb5 Rb8 $15) 12... b4 {[%emt 0:07:32]} 13. Nxd5 {[%emt 0:01:01]} cxd5 {[%emt 0:00:08]} 14. Bf4 {[%emt 0:00:06]} Ba6 {[%emt 0:00:54]} 15. Qd1 {[%emt 0:02:17]} Ra7 {[%emt 0:14:47]} 16. Rc2 {[%emt 0:09:55]} Qa8 {[%emt 0:02:03]} 17. Rac1 {[%emt 0:10:34]} h6 {[%emt 0:02:01]} 18. Ne5 {[%emt 0:09:45]} Nxe5 {[%emt 0:02:51]} 19. Bxe5 {[%emt 0:00:07]} Rc8 {[%emt 0:03:42]} 20. h4 {[%emt 0:08:22]} Rxc2 {[%emt 0:06:56]} 21. Qxc2 {[%emt 0:01:04]} (21. Rxc2 {simplifies} a4 22. Rc1 Bf8 23. e3) 21... a4 {[%emt 0:03:06][%cal Ob4b3]} 22. b3 {[%emt 0:05:40]} axb3 {[%emt 0:07:39] The position is equal.} 23. axb3 {[%emt 0:00:06]} Bf8 {[%emt 0:02:29]} 24. Bf3 {[%emt 0:05:42]} Bb5 {[%emt 0:08:03]} 25. Kg2 {[%emt 0:00:52]} Bd7 {[%emt 0:04:54]} 26. h5 {[%emt 0:04:48]} Ra2 {[%emt 0:05:19]} 27. Qc7 {[%emt 0:01:21]} Ra7 {[%emt 0:00:14]} 28. Qc2 {[%emt 0:01:09]} Ra2 {[%emt 0:00:06]} 29. Qc7 {[%emt 0:01:38]} Ra7 $1 {[%emt 0:00:04]} 30. Qc2 {[%emt 0:00:05] Weighted Error Value: White=0.04 (flawless) /Black=0.03 (flawless)} 1/2-1/2

[Event "ETCC Open 2023"]
[Site "Budva"]
[Date "2023.11.14"]
[Round "4.28"]
[White "McShane, Luke J"]
[Black "Ali Marandi, Cemil Can"]
[Result "1-0"]
[ECO "C88"]
[WhiteElo "2626"]
[BlackElo "2544"]
[Annotator "ChessBase"]
[PlyCount "133"]
[EventDate "2023.11.10"]
[EventType "team-tourn"]
[EventCountry "MNE"]
[SourceTitle "playchess.com"]
[Source "ChessBase"]
[SourceQuality "1"]
[WhiteTeam "England"]
[BlackTeam "Turkey"]
[WhiteTeamCountry "ENG"]
[BlackTeamCountry "TUR"]
[TimeControl "40/5400+30:1800+30"]

1. e4 {[%emt 0:03:06]} e5 {[%emt 0:00:11]} 2. Nf3 {[%emt 0:00:04]} Nc6 {[%emt 0:00:07]} 3. Bb5 {[%emt 0:00:07]} a6 {[%emt 0:00:06]} 4. Ba4 {[%emt 0:00:06]} Nf6 {[%emt 0:00:07]} 5. O-O {[%emt 0:00:09]} Be7 {[%emt 0:00:13]} 6. Re1 {[%emt 0:00:06]} b5 {[%emt 0:00:07]} 7. Bb3 {[%emt 0:00:07]} O-O {[%emt 0:00:26]} 8. a4 {[%emt 0:00:06]} d5 {[%emt 0:00:11]} 9. Bxd5 {[%emt 0:10:05]} Nxd5 {[%emt 0:09:54]} 10. exd5 {[%emt 0:00:07]} Nd4 {[%emt 0:07:57]} 11. Nxd4 {[%emt 0:12:40]} exd4 {[%emt 0:00:17]} 12. axb5 {[%emt 0:00:09]} Bb7 {[%emt 0:00:36]} 13. c4 {[%emt 0:00:59]} dxc3 {[%emt 0:05:28]} 14. dxc3 {[%emt 0:02:37]} axb5 {[%emt 0:01:00]} 15. Rxa8 {[%emt 0:00:04]} Bxa8 {[%emt 0:00:09]} 16. Bf4 {[%emt 0:17:54]} Bd6 {[%emt 0:00:48]} 17. Bxd6 {[%emt 0:08:30]} Qxd6 {[%emt 0:00:08]} 18. Na3 {[%emt 0:00:06]} b4 {[%emt 0:04:30]} 19. cxb4 {[%emt 0:12:53]} Qxb4 {[%emt 0:01:04]} 20. Re2 {[%emt 0:04:48]} Rd8 {[%emt 0:06:46]} 21. Nc2 {[%emt 0:00:22]} Qxb2 {[%emt 0:07:49]} 22. Ne3 {[%emt 0:00:08]} Qf6 {[%emt 0:01:57]} 23. Rd2 {[%emt 0:03:23]} g6 {[%emt 0:06:37]} 24. h3 {[%emt 0:03:11]} h5 {[%emt 0:00:42]} 25. Qa4 {[%emt 0:05:17]} Qe5 {[%emt 0:05:33]} 26. Rd1 {[%emt 0:03:45]} Kg7 {[%emt 0:02:45]} 27. Qa5 {[%emt 0:00:55]} Qd6 {[%emt 0:10:30]} 28. Qc3+ {[%emt 0:02:34]} Kg8 {[%emt 0:03:24]} 29. Qa1 {[%emt 0:02:09]} Re8 {[%emt 0:01:13]} 30. Qa5 {[%emt 0:02:30]} Rd8 {[%emt 0:02:54]} 31. Nc4 {[%emt 0:00:51]} Qf4 {[%emt 0:00:39]} 32. Qc5 {[%emt 0:01:32]} Rb8 {[%emt 0:09:40]} 33. Re1 {[%emt 0:02:42]} Rd8 {[%emt 0:00:51]} 34. Rd1 {[%emt 0:00:49]} Rb8 {[%emt 0:00:09]} 35. Ra1 {[%emt 0:00:44]} Rd8 {[%emt 0:03:43]} 36. Ne3 {[%emt 0:00:09]} Qe5 {[%emt 0:01:24]} 37. Ra5 {[%emt 0:00:45]} Rb8 {[%emt 0:02:02]} 38. Qc2 {[%emt 0:00:38]} c6 {[%emt 0:01:01]} 39. Qa2 {[%emt 0:01:18]} Qe8 {[%emt 0:01:59]} 40. d6 {[%emt 0:00:08]} c5 {[%emt 0:01:48]} 41. Rxc5 {[%emt 0:08:17]} Rd8 {[%emt 0:02:58]} 42. Qa6 {[%emt 0:08:57]} Qe6 {[%emt 0:05:07]} 43. Rc1 {[%emt 0:04:39]} Kg7 {[%emt 0:05:00]} 44. Rd1 {[%emt 0:00:34]} Qf6 {[%emt 0:00:14]} 45. Qa5 {[%emt 0:01:33]} Rb8 {[%emt 0:05:41]} 46. d7 {[%emt 0:02:35]} Rd8 {[%emt 0:03:15]} 47. Rd6 {[%emt 0:00:51]} Qe7 {[%emt 0:00:54]} 48. Qc3+ {[%emt 0:01:44]} Kh7 {[%emt 0:00:13]} 49. Qd4 {[%emt 0:00:06]} Kg8 {[%emt 0:01:07]} 50. f3 {[%emt 0:01:36]} Kh7 {[%emt 0:00:13]} 51. Kf2 {[%emt 0:00:56]} Kg8 {[%emt 0:00:18]} 52. Nc4 {[%emt 0:01:17]} Kh7 {[%emt 0:00:53]} 53. Ne5 {[%emt 0:00:31]} Kg8 {[%emt 0:00:29]} 54. Nd3 {[%emt 0:00:34]} Kh7 {[%emt 0:00:34]} 55. Nc5 {[%emt 0:00:14]} Kg8 {[%emt 0:03:42]} 56. h4 {[%emt 0:00:37]} Kh7 {[%emt 0:00:18]} 57. Qf6 {[%emt 0:03:07]} Qxf6 {[%emt 0:00:05]} 58. Rxf6 {[%emt 0:00:02]} Kg7 {[%emt 0:00:12]} 59. Ra6 {[%emt 0:01:28]} Kf8 {[%emt 0:00:25]} 60. Ke3 {[%emt 0:00:15]} Ke7 {[%emt 0:00:38]} 61. Kf4 {[%emt 0:01:31]} Bd5 {[%emt 0:00:49]} 62. Kg5 {[%emt 0:00:39]} Bc4 {[%emt 0:03:49]} 63. Ra1 {[%emt 0:00:35]} Bb5 {[%emt 0:02:06]} 64. Re1+ {[%emt 0:00:27]} Kf8 {[%emt 0:00:01]} 65. Kf6 {[%emt 0:00:17]} Bxd7 {[%emt 0:00:13]} 66. Rd1 {[%emt 0:00:08]} Ke8 {[%emt 0:00:05]} 67. Rxd7 {[%emt 0:00:20]} 1-0

[Event "ETCC Open 2023"]
[Site "Budva"]
[Date "2023.11.14"]
[Round "4.29"]
[White "Theodorou, Nikolas"]
[Black "Anton Guijarro, David"]
[Result "1/2-1/2"]
[ECO "B15"]
[WhiteElo "2619"]
[BlackElo "2668"]
[Annotator "ChessBase"]
[PlyCount "88"]
[EventDate "2023.11.10"]
[EventType "team-tourn"]
[EventCountry "MNE"]
[SourceTitle "playchess.com"]
[Source "ChessBase"]
[SourceQuality "1"]
[WhiteTeam "Greece"]
[BlackTeam "Spain"]
[WhiteTeamCountry "GRE"]
[BlackTeamCountry "ESP"]
[TimeControl "40/5400+30:1800+30"]

1. e4 {[%emt 0:00:03]} c6 {[%emt 0:00:33]} 2. d4 {[%emt 0:00:06]} d5 {[%emt 0:00:05]} 3. Nc3 {[%emt 0:00:03]} dxe4 {[%emt 0:01:17]} 4. Nxe4 {[%emt 0:00:03]} Nf6 {[%emt 0:00:08]} 5. Nxf6+ {[%emt 0:00:06]} exf6 {[%emt 0:00:03]} 6. c3 {[%emt 0:00:09]} Bd6 {[%emt 0:00:32]} 7. Bd3 {[%emt 0:00:05]} O-O {[%emt 0:00:29]} 8. Qc2 {[%emt 0:00:04]} Re8+ {[%emt 0:01:24]} 9. Ne2 {[%emt 0:00:06]} h5 {[%emt 0:00:31]} 10. O-O {[%emt 0:00:06]} h4 {[%emt 0:01:05]} 11. h3 {[%emt 0:00:05]} Nd7 {[%emt 0:01:22]} 12. Bd2 {[%emt 0:00:07]} Nf8 {[%emt 0:00:43]} 13. Rae1 {[%emt 0:00:06]} Bd7 {[%emt 0:08:59]} 14. c4 {[%emt 0:00:07]} Qc8 {[%emt 0:12:07]} 15. Nf4 {[%emt 0:01:32]} b5 {[%emt 0:15:04]} 16. b3 {[%emt 0:11:26]} bxc4 {[%emt 0:00:30]} 17. bxc4 {[%emt 0:00:08]} c5 {[%emt 0:06:17]} 18. d5 {[%emt 0:04:56]} Qc7 {[%emt 0:04:59]} 19. Qc1 {[%emt 0:10:48]} Re5 {[%emt 0:03:16]} 20. Rxe5 {[%emt 0:07:01]} Bxe5 {[%emt 0:00:40]} 21. Ne2 {[%emt 0:00:31]} f5 {[%emt 0:06:33]} 22. Kh1 {[%emt 0:05:38]} Re8 {[%emt 0:01:08]} 23. Ng1 {[%emt 0:01:37]} Ng6 {[%emt 0:01:03]} 24. Re1 {[%emt 0:02:51]} Qc8 {[%emt 0:03:38]} 25. Qa3 {[%emt 0:16:58]} Bd4 {[%emt 0:02:06]} 26. Rxe8+ {[%emt 0:13:34]} Qxe8 {[%emt 0:00:06]} 27. f4 {[%emt 0:00:06]} Be3 {[%emt 0:02:06]} 28. Bxe3 {[%emt 0:00:43]} Qxe3 {[%emt 0:00:06]} 29. Qxa7 {[%emt 0:00:04]} Be8 {[%emt 0:07:44]} 30. Qb8 {[%emt 0:16:13]} Nxf4 {[%emt 0:01:50]} 31. Bxf5 {[%emt 0:00:59]} Nh5 {[%emt 0:01:30]} 32. Bd3 {[%emt 0:02:31]} Ng3+ {[%emt 0:14:54]} 33. Kh2 {[%emt 0:00:03]} Qxd3 {[%emt 0:00:51]} 34. Qxe8+ {[%emt 0:00:07]} Kh7 {[%emt 0:00:03]} 35. Nf3 {[%emt 0:02:30]} Nf1+ {[%emt 0:00:23]} 36. Kg1 {[%emt 0:00:34]} Ng3 {[%emt 0:00:29]} 37. Kh2 {[%emt 0:02:39]} Nf1+ {[%emt 0:00:14]} 38. Kg1 {[%emt 0:00:01]} Ng3 {[%emt 0:00:05]} 39. Qe1 {[%emt 0:04:33]} Qxc4 {[%emt 0:01:00]} 40. Qd1 {[%emt 0:00:25]} Ne2+ {[%emt 0:02:49]} 41. Kh1 {[%emt 0:02:14]} Ng3+ {[%emt 0:12:46]} 42. Kg1 {[%emt 0:01:44]} Ne2+ {[%emt 0:00:34]} 43. Kh1 {[%emt 0:03:56]} Ng3+ {[%emt 0:00:34]} 44. Kg1 {[%emt 0:00:48]} Ne2+ {[%emt 0:00:18]} 1/2-1/2

[Event "ETCC Open 2023"]
[Site "Budva"]
[Date "2023.11.14"]
[Round "4.30"]
[White "Santos Latasa, Jaime"]
[Black "Papaioannou, Ioannis"]
[Result "1/2-1/2"]
[ECO "D37"]
[WhiteElo "2635"]
[BlackElo "2623"]
[Annotator "TA"]
[PlyCount "78"]
[EventDate "2023.11.10"]
[EventType "team-tourn"]
[EventCountry "MNE"]
[SourceTitle "playchess.com"]
[Source "ChessBase"]
[SourceQuality "1"]
[WhiteTeam "Spain"]
[BlackTeam "Greece"]
[WhiteTeamCountry "ESP"]
[BlackTeamCountry "GRE"]
[TimeControl "40/5400+30:1800+30"]

{[%evp 9,78,19,29,21,16,22,29,0,14,19,7,9,21,17,28,25,18,10,30,22,57,0,0,-66,-82,-76,-89,-76,-79,-75,-77,-55,-66,-76,-81,-82,-79,-60,-81,-74,-62,-71,-57,-60,-31,-97,-52,-54,-51,-48,-43,-48,-42,-41,-19,-47,-50,-76,-42,-46,8,-30,-30,-21,-22,-20,-23,-15,0,0,0]} 1. d4 {[%emt 0:00:03]} Nf6 {[%emt 0:00:13]} 2. c4 {[%emt 0:00:06]} e6 {[%emt 0:00:17]} 3. Nf3 {[%emt 0:00:13]} d5 {[%emt 0:01:00]} 4. Nc3 {[%emt 0:00:26]} Nbd7 {[%emt 0:00:36]} 5. Bf4 {[%emt 0:03:34]} dxc4 {[%emt 0:00:38]} 6. e3 {[%emt 0:00:05] D37: Queen's Gambit Declined: 5 Bf4.} a6 {[%emt 0:01:08] 6...Bd6 is the modern continuation.} 7. a4 {[%emt 0:02:33]} Bd6 {[%emt 0:02:44] [#]} 8. Ne5 $146 {[%emt 0:05:20] White has an edge.} (8. Bxd6 {simplifies} cxd6 9. Bxc4 O-O 10. O-O) ({Predecessor:} 8. Bxd6 cxd6 9. Bxc4 O-O 10. O-O b6 11. e4 Bb7 12. Bd3 e5 13. Re1 Re8 14. Bc4 exd4 15. Qxd4 {½-½ Radjabov,T (2765)-Carlsen,M (2847) NIC Classic KO rapid 2021 (1.14)}) 8... Nd5 {[%emt 0:04:45]} 9. Bxc4 {[%emt 0:00:39]} Nxf4 {[%emt 0:04:54]} 10. exf4 {[%emt 0:00:22]} O-O {[%emt 0:00:33]} 11. O-O {[%emt 0:00:22]} Nb6 {[%emt 0:02:34] [#] Strongly threatening ...Bxe5.} 12. Bb3 {[%emt 0:01:05]} a5 {[%emt 0:01:37]} 13. Qh5 {[%emt 0:11:11]} (13. g3 {simplifies} c6 14. h4 Nd5 15. Re1) 13... Bd7 {[%emt 0:12:12]} 14. Ne4 {[%emt 0:04:43][%cal Of4f5]} Bxe5 {[%emt 0:15:55]} 15. fxe5 {[%emt 0:19:44]} (15. dxe5 $14 Bc6 16. Bc2 (16. Ng5 h6 $11) 16... Bxe4 17. Bxe4) 15... Bc6 $11 {[%emt 0:05:01][%csl LRd4,LRe4]} 16. Ng5 {[%emt 0:05:17]} ({White should try} 16. Qg4 $11) 16... h6 $15 {[%emt 0:00:08]} (16... Qxd4 $2 17. Qxh7#) 17. Nxf7 {[%emt 0:00:10][%mdl 64] Remove Defender} Rxf7 {[%emt 0:03:15]} 18. Bxe6 {[%emt 0:00:13][%mdl 64] [#] Pin} Qe7 {[%emt 0:00:08]} 19. Bxf7+ {[%emt 0:00:38]} (19. Qxf7+ Qxf7) 19... Qxf7 {[%emt 0:00:05]} 20. Qxf7+ {[%emt 0:00:27]} Kxf7 {[%emt 0:00:02]} 21. b3 $1 {[%emt 0:00:13]} Rd8 {[%emt 0:02:56][%mdl 1024] Black has strong compensation.} 22. Rfd1 {[%emt 0:02:13]} Nd5 {[%emt 0:02:04] ...Nc3 would be deadly.} 23. f3 {[%emt 0:01:51]} Nf4 {[%emt 0:05:10][%cal Od8d4]} 24. Kf2 {[%emt 0:00:35]} g5 {[%emt 0:01:27]} 25. Rd2 {[%emt 0:01:49]} Ne6 {[%emt 0:02:10]} 26. Ke3 {[%emt 0:00:12]} Bd5 {[%emt 0:00:29]} 27. Rb1 {[%emt 0:00:07]} (27. Rb2 $15) 27... Kg6 {[%emt 0:00:43][%cal Ob7b5]} 28. b4 {[%emt 0:03:58]} axb4 {[%emt 0:01:07]} 29. Rxb4 {[%emt 0:00:05]} Ra8 {[%emt 0:03:53]} 30. Rc2 {[%emt 0:02:53]} Bc6 {[%emt 0:01:18]} 31. g3 {[%emt 0:01:47]} Kf5 {[%emt 0:02:56]} 32. h4 {[%emt 0:05:20]} Kg6 {[%emt 0:00:49]} ({Reject} 32... Rxa4 33. Rxa4 Bxa4 34. Rh2 $11) ({Don't do} 32... Bxa4 33. Ra2 b5 34. h5 $16) 33. Rc1 {[%emt 0:04:28]} Bd5 {[%emt 0:03:13]} 34. Rb5 {[%emt 0:01:00]} Bc6 {[%emt 0:01:16]} (34... c6 $15 35. Rb4 (35. Rxb7 $2 {perishes.} Rxa4 36. hxg5 Ra3+ {[%mdl 64] Deflection} 37. Kd2 Nxg5 $19) 35... Rf8) 35. d5 {[%emt 0:03:03]} Bxb5 {[%emt 0:00:17]} 36. axb5 {[%emt 0:00:06]} Ra3+ {[%emt 0:00:24]} 37. Ke4 {[%emt 0:00:29]} Ra4+ {[%emt 0:00:08]} 38. Ke3 {[%emt 0:00:04]} Ra3+ {[%emt 0:00:28]} 39. Ke4 {[%emt 0:00:03]} Ra4+ {[%emt 0:00:21] Weighted Error Value: White=0.14 (very precise) /Black=0.13 (very precise)} 1/2-1/2

[Event "ETCC Open 2023"]
[Site "Budva"]
[Date "2023.11.14"]
[Round "4.31"]
[White "Kourkoulos-Arditis, Stamatis"]
[Black "Shirov, Alexei"]
[Result "1/2-1/2"]
[ECO "A16"]
[WhiteElo "2543"]
[BlackElo "2668"]
[Annotator "ChessBase"]
[PlyCount "84"]
[EventDate "2023.11.10"]
[EventType "team-tourn"]
[EventCountry "MNE"]
[SourceTitle "playchess.com"]
[Source "ChessBase"]
[SourceQuality "1"]
[WhiteTeam "Greece"]
[BlackTeam "Spain"]
[WhiteTeamCountry "GRE"]
[BlackTeamCountry "ESP"]
[TimeControl "40/5400+30:1800+30"]

1. Nf3 {[%emt 0:00:03]} Nf6 {[%emt 0:00:11]} 2. c4 {[%emt 0:00:08]} g6 {[%emt 0:01:01]} 3. Nc3 {[%emt 0:00:13]} d5 {[%emt 0:00:06]} 4. cxd5 {[%emt 0:00:06]} Nxd5 {[%emt 0:00:03]} 5. h4 {[%emt 0:00:13]} Bg7 {[%emt 0:09:05]} 6. h5 {[%emt 0:00:24]} Nc6 {[%emt 0:00:40]} 7. g3 {[%emt 0:02:46]} Bg4 {[%emt 0:04:55]} 8. h6 {[%emt 0:05:19]} Bxc3 {[%emt 0:01:43]} 9. bxc3 {[%emt 0:09:06]} Bxf3 {[%emt 0:02:36]} 10. exf3 {[%emt 0:00:04]} Qd6 {[%emt 0:00:20]} 11. Rb1 {[%emt 0:14:17]} O-O-O {[%emt 0:03:39]} 12. Qb3 {[%emt 0:04:57]} Nb6 {[%emt 0:01:10]} 13. Be2 {[%emt 0:00:24]} f5 {[%emt 0:01:47]} 14. d3 {[%emt 0:03:24]} e5 {[%emt 0:11:16]} 15. Kf1 {[%emt 0:06:24]} f4 {[%emt 0:19:09]} 16. Kg2 {[%emt 0:03:03]} g5 {[%emt 0:00:17]} 17. g4 {[%emt 0:48:09]} Qg6 {[%emt 0:00:11]} 18. Bb2 {[%emt 0:00:00]} Rd5 {[%emt 0:15:02]} 19. d4 {[%emt 0:00:00]} Na5 {[%emt 0:11:45]} 20. Qd1 {[%emt 0:00:00]} Nac4 {[%emt 0:00:06]} 21. Bd3 {[%emt 0:00:00]} Qf7 {[%emt 0:00:14]} 22. Ba1 {[%emt 0:00:00]} Ra5 {[%emt 0:00:36]} 23. Re1 {[%emt 0:00:00]} Rxa2 {[%emt 0:02:28]} 24. Re2 {[%emt 0:00:00]} Rxe2 {[%emt 0:02:11]} 25. Qxe2 {[%emt 0:00:00]} Re8 {[%emt 0:05:16]} 26. Rb4 {[%emt 0:00:00]} Nd6 {[%emt 0:07:00]} 27. dxe5 {[%emt 0:00:34]} c5 {[%emt 0:00:14]} 28. Rxb6 {[%emt 0:00:24]} axb6 {[%emt 0:00:04]} 29. c4 {[%emt 0:00:04]} Re6 {[%emt 0:00:24]} 30. Qa2 {[%emt 0:01:13]} Ne8 {[%emt 0:00:30]} 31. Qa8+ {[%emt 0:00:46]} Kc7 {[%emt 0:00:06]} 32. Be4 {[%emt 0:00:20]} Qd7 {[%emt 0:00:51]} 33. Qxb7+ {[%emt 0:01:54]} Kd8 {[%emt 0:00:04]} 34. Qa8+ {[%emt 0:00:19]} Qc8 {[%emt 0:00:09]} 35. Qd5+ {[%emt 0:01:10]} Qd7 {[%emt 0:00:05]} 36. Qa8+ {[%emt 0:00:03]} Qc8 {[%emt 0:00:05]} 37. Qa4 {[%emt 0:02:28]} Qd7 {[%emt 0:00:44]} 38. Qa6 {[%emt 0:00:39]} Nc7 {[%emt 0:00:44]} 39. Qb7 {[%emt 0:00:21]} Qc8 {[%emt 0:01:18]} 40. Qa7 {[%emt 0:00:07]} Qa6 {[%emt 0:00:48]} 41. Qb8+ {[%emt 0:03:32]} Qc8 {[%emt 0:00:08]} 42. Qa7 {[%emt 0:00:05]} Qa6 {[%emt 0:01:07]} 1/2-1/2